fUSD/lending_fUSD_20240224
["ID","MTS","AMOUNT","RATE_DAILY","PERIOD"]
[315047254,1708775431718,-499.99,0.00022699,2]
[315047255,1708775431730,-692.73,0.00022699,2]
[315047256,1708775431740,-8004.1637,0.000227,2]
[315047257,1708775431750,-2390.6277,0.000227,2]
[315047258,1708775431760,-1000.0,0.000227,2]
[315047259,1708775431770,-151.04,0.00022701,2]
[315047260,1708775431779,-1341.4276362,0.00022717,2]
[315047261,1708775431790,-797.21235144,0.00022799,2]
[315047262,1708775431800,-9140.2673,0.000228,2]
[315047263,1708775431810,-17872.78049977,0.000228,2]
[315047264,1708775431945,-11853.48441631,0.000228,2]
[315047265,1708775431957,-1503.66,0.000228,2]
[315047279,1708775437453,-1515.9180956,0.00022654,2]
[315047280,1708775437467,-3715.2863798,0.000228,2]
[315047281,1708775437510,-638.24848553,0.000228,2]
[315047282,1708775437521,-2863.44825205,0.000228,2]
[315047283,1708775437567,-491.34616654,0.000228,2]
[315047284,1708775437576,-1364.76968599,0.000228,2]
[315047285,1708775437791,-783.45476951,0.000228,2]
[315047287,1708775437804,-956.92468137,0.000228,2]
[315047543,1708775440911,-1812.24917207,0.000228,2]
[315047544,1708775440926,-904.05268825,0.000228,2]
[315047545,1708775441140,-546.13,0.000228,2]
[315047547,1708775441152,-8954.69930281,0.000228,2]
[315047548,1708775441161,-792.86663467,0.000228,2]
[315047549,1708775441171,-1241.59906936,0.000228,2]
[315047550,1708775441180,-151.04,0.00022816,2]
[315047551,1708775441190,-158.67828646,0.0002282,2]
[315047552,1708775441199,-1241.59906933,0.00022825,2]
[315047553,1708775441208,-1241.59906933,0.0002285,2]
[315047554,1708775441217,-1241.59906933,0.00022875,2]
[315047555,1708775441226,-223.45,0.0002289,3]
[315047556,1708775441237,-670.35,0.0002289,3]
[315047557,1708775441247,-155.65500082,0.00022898,2]
[315047558,1708775441257,-155.0,0.00022898,2]
[315047559,1708775441267,-266.26135688,0.00022899,2]
[315047560,1708775441276,-196.18883523,0.00022899,2]
[315047561,1708775441287,-459.50914128,0.000229,2]
[315047562,1708775442642,-1318.93085872,0.000229,2]
[315047563,1708775442652,-6012.49276519,0.000229,2]
[315047564,1708775442663,-5853.74415541,0.000229,2]
[315047565,1708775444114,-263999.88378059,0.000229,2]
[315047566,1708775444123,-208.5464,0.000229,2]
[315047567,1708775444132,-4228.62696206,0.000229,2]
[315047568,1708775444141,-214.15777781,0.000229,2]
[315047569,1708775444150,-350.68506258,0.000229,2]
[315047570,1708775444159,-1241.59906933,0.000229,2]
[315047571,1708775444168,-151.04,0.00022932,2]
[315047572,1708775444177,-184.5432588,0.0002299,2]
[315047573,1708775444186,-364945.51024283,0.00023,2]
[315047583,1708775445554,-3669.51858397,0.00023,2]
[315047584,1708775445566,-272.68782957,0.00023,2]
[315047586,1708775514139,469.15,0.00020297,2]
[315047588,1708775582020,1585.8,0.00022144,2]
[315047589,1708775593876,222.42,0.00022144,2]
[315047590,1708775624816,780.643079,0.00022332,2]
[315047591,1708775654825,1017.0,0.000211,2]
[315047592,1708775665772,213.41,0.00017736,2]
[315047594,1708775682006,365.17,0.0002217,2]
[315047595,1708775722084,395.07,0.00022146,2]
[315047596,1708775724744,500.0,0.00022146,2]
[315047597,1708775734200,2037.29,0.00022146,2]
[315047598,1708775764455,204.0,0.00022132,2]
[315047599,1708775821925,169.269073,0.00022343,2]
[315047600,1708775832055,1268.34,0.00022173,2]
[315047601,1708775839557,23900.0,0.00022151,2]
[315047602,1708775849139,366.5,0.00022151,2]
[315047603,1708775856675,165.83,0.00022151,2]
[315047604,1708775857128,313.8,0.00022151,2]
[315047605,1708775863907,155.0,0.0002215,3]
[315047606,1708775873642,155.95,0.00022383,2]
[315047607,1708775881122,407.26,0.00022225,2]
[315047608,1708776005517,200.0,0.00022132,2]
[315047609,1708776018597,162.5,0.00022401,2]
[315047610,1708776058794,445.69,0.00020354,2]
[315047611,1708776094410,151.0,0.00024973,7]
[315047612,1708776098749,151.0,0.00024973,7]
[315047613,1708776116666,188.01918,0.00024973,7]
[315047614,1708776121281,188.01918,0.00024973,7]
[315047615,1708776133662,151.0,0.00024973,7]
[315047616,1708776141130,151.0,0.00024973,7]
[315047617,1708776146223,153.481308,0.00024973,7]
[315047618,1708776149149,169.26907299,0.00022338,2]
[315047619,1708776153477,316.83695,0.00024973,7]
[315047620,1708776156633,177.424971,0.00024973,7]
[315047621,1708776158043,151.0,0.00024973,7]
[315047622,1708776158939,159.097262,0.00024973,7]
[315047623,1708776161377,151.0,0.00024973,7]
[315047624,1708776161906,316.83695,0.00024973,7]
[315047625,1708776163994,683.94,0.00022088,2]
[315047626,1708776166627,151.0,0.00024973,7]
[315047627,1708776167914,151.0,0.00024973,7]
[315047628,1708776172344,151.0,0.00024973,7]
[315047629,1708776180974,151.0,0.00024973,7]
[315047630,1708776182429,155.45774,0.00024973,7]
[315047631,1708776188042,155.45774,0.00024973,7]
[315047632,1708776211260,889.14,0.00022141,2]
[315047633,1708776211478,889.14,0.00022258,2]
[315047634,1708776211689,889.14,0.00022374,2]
[315047635,1708776215674,151.0,0.00024973,7]
[315047636,1708776223123,182.58,0.00022008,2]
[315047637,1708776265777,151.0,0.00024973,7]
[315047638,1708776279179,151.0,0.00024973,7]
[315047639,1708776282229,151.0,0.00024973,7]
[315047640,1708776283877,151.912681,0.00024973,7]
[315047641,1708776285073,181.48517,0.00024973,7]
[315047642,1708776287112,180.620676,0.00024973,7]
[315047643,1708776308828,305.41,0.00021997,2]
[315047644,1708776380836,4287.9,0.00022,2]
[315047645,1708776389465,151.0,0.00024973,7]
[315047646,1708776394216,166.22,0.00022,2]
[315047647,1708776395564,169.217262,0.00024973,7]
[315047648,1708776400456,155.622429,0.00024973,7]
[315047649,1708776402937,169.217262,0.00024973,7]
[315047650,1708776442616,156.148739,0.00024973,7]
[315047651,1708776444124,151.0,0.00024973,7]
[315047652,1708776450805,151.0,0.00024973,7]
[315047653,1708776454317,176.382141,0.00024973,7]
[315047654,1708776464502,169.26907299,0.00022335,2]
[315047655,1708776469121,151.0,0.00024973,7]
[315047656,1708776495525,151.0,0.00024973,7]
[315047657,1708776499990,151.0,0.00024973,7]
[315047658,1708776503534,151.0,0.00024973,7]
[315047659,1708776506612,151.0,0.00024973,7]
[315047660,1708776508380,151.0,0.00024973,7]
[315047661,1708776512619,151.0,0.00024973,7]
[315047662,1708776516161,151.0,0.00024973,7]
[315047663,1708776517860,151.0,0.00024973,7]
[315047664,1708776521515,151.0,0.00024973,7]
[315047665,1708776524370,151.0,0.00024973,7]
[315047666,1708776528379,151.0,0.00024973,7]
[315047667,1708776535889,151.0,0.00024973,7]
[315047668,1708776544802,275.6189892,0.00022,2]
[315047669,1708776571589,151.0,0.00024973,7]
[315047670,1708776577933,151.0,0.00024973,7]
[315047671,1708776580640,152.944027,0.00024973,7]
[315047672,1708776598357,455.55,0.00020096,2]
[315047673,1708776598398,455.55,0.0002236,2]
[315047674,1708776611339,151.27923715,0.00022,2]
[315047679,1708776631874,-372.7257167,0.00022432,2]
[315047680,1708776631928,-500.0,0.00022432,2]
[315047681,1708776632019,-340.05338017,0.00022432,2]
[315047682,1708776632029,-1446.0,0.00022433,2]
[315047683,1708776632038,-1049.49088706,0.00022441,2]
[315047684,1708776632048,-167.23600674,0.00022483,2]
[315047685,1708776632058,-889.14,0.00022491,2]
[315047686,1708776632067,-889.14,0.00022607,2]
[315047687,1708776632077,-167.23600671,0.00022689,2]
[315047688,1708776632087,-889.14,0.00022724,2]
[315047689,1708776632096,-150.0,0.00022798,2]
[315047690,1708776632105,-166.0,0.00022799,2]
[315047691,1708776632114,-2694.18,0.00022799,2]
[315047692,1708776632123,-431.17,0.00022799,2]
[315047693,1708776632132,-204.0,0.00022837,2]
[315047694,1708776632142,-889.14,0.0002284,2]
[315047695,1708776632151,-167.23600671,0.00022895,2]
[315047696,1708776632160,-155.16976757,0.00022898,2]
[315047697,1708776632170,-210.63510044,0.00022898,3]
[315047698,1708776632179,-156.7354839,0.00022899,2]
[315047699,1708776632188,-53822.90692549,0.000229,2]
[315047700,1708776632197,-693.75830531,0.000229,2]
[315047701,1708776632207,-302.13686974,0.000229,2]
[315047702,1708776632217,-889.14,0.00022957,2]
[315047703,1708776632225,-719.69,0.0002299,3]
[315047704,1708776632234,-184.5432588,0.0002299,2]
[315047705,1708776632246,-429.75176689,0.00022998,2]
[315047706,1708776632255,-162.5392602,0.00022999,2]
[315047707,1708776632265,-3684.04956855,0.00022999,2]
[315047712,1708776637696,-162.41301619,0.00022999,2]
[315047713,1708776637705,-148.79819064,0.00023,2]
[315047714,1708776637717,-679.21665167,0.00023,2]
[315047715,1708776637805,-24413.57444535,0.00023,2]
[315047716,1708776637872,-7553.06694074,0.00023,2]
[315047717,1708776637884,-635.51603109,0.00023,2]
[315047718,1708776637895,-8498.67451087,0.00023,2]
[315047719,1708776637927,-253.25761465,0.00023,2]
[315047720,1708776637940,-750.83334516,0.00023,2]
[315047721,1708776637953,-741.27723955,0.00023,2]
[315047722,1708776637963,-420.8888349,0.00023,2]
[315047723,1708776637975,-313.89851893,0.00023,2]
[315047939,1708776640278,-1159.81592435,0.00022999,2]
[315047941,1708776640290,-354.33584849,0.00022999,2]
[315047943,1708776640301,-1581.587769,0.00022999,2]
[315048000,1708776640916,-1888.48371325,0.00022999,2]
[315048001,1708776641065,-157879.19347019,0.00023,2]
[315048002,1708776641093,-794.10923715,0.00023,2]
[315048003,1708776641105,-291.52607922,0.00023,2]
[315048004,1708776641116,-765.7731993,0.00023,2]
[315048005,1708776641127,-7463.19073058,0.00023,2]
[315048006,1708776641139,-328.10885313,0.00023,2]
[315048007,1708776641152,-1326.29399969,0.00023,2]
[315048008,1708776641163,-1572.90815554,0.00023,2]
[315048009,1708776641178,-51643.60398856,0.00023,2]
[315048021,1708776642682,-452.84,0.00022611,2]
[315048023,1708776642691,-5553.47150836,0.00023,2]
[315048028,1708776642738,-276.598963,0.00023,2]
[315048030,1708776642936,-150.01,0.00022999,2]
[315048031,1708776642946,-1287.5824577,0.00023,2]
[315048032,1708776642965,-128029.62153106,0.00023,2]
[315048033,1708776642975,-13125.0,0.00023,2]
[315048034,1708776642984,-155.0,0.00023,2]
[315048035,1708776642994,-246393.22809255,0.00023,2]
[315048036,1708776643003,-1515.9180956,0.00023017,2]
[315048037,1708776643013,-151.04,0.00023048,2]
[315048038,1708776643023,-889.14,0.00023073,2]
[315048039,1708776643033,-166.0,0.00023092,2]
[315048040,1708776643041,-167.23600671,0.00023101,2]
[315048041,1708776643050,-5231.23253997,0.0002313,2]
[315048042,1708776643059,-151.04,0.00023164,2]
[315048043,1708776643069,-1341.4276362,0.0002317,2]
[315048045,1708776643078,-889.14,0.0002319,2]
[315048047,1708776643087,-10432.49968422,0.000232,2]
[315048048,1708776643096,-151.04,0.0002328,2]
[315048049,1708776643106,-889.14,0.00023306,2]
[315048050,1708776643115,-167.23600671,0.00023308,2]
[315048051,1708776643125,-19999.99,0.00023368,2]
[315048052,1708776643135,-2974.5,0.00023368,2]
[315048053,1708776643144,-150.0,0.0002339,2]
[315048054,1708776643154,-151.04,0.00023395,2]
[315048055,1708776643163,-207.05,0.00023397,2]
[315048056,1708776643172,-302.13686972,0.000234,2]
[315048057,1708776643182,-889.14,0.00023423,2]
[315048058,1708776643192,-800.0,0.00023479,2]
[315048059,1708776643201,-151.04,0.00023511,2]
[315048060,1708776643210,-167.23600671,0.00023514,2]
[315048061,1708776643220,-889.14,0.00023539,2]
[315048062,1708776643228,-693.75830528,0.00023606,2]
[315048063,1708776643238,-151.04,0.00023627,2]
[315048064,1708776643248,-305.41,0.0002364,2]
[315048065,1708776643258,-889.14,0.00023656,2]
[315048066,1708776643267,-167.23600671,0.0002372,2]
[315048067,1708776643277,-151.04,0.00023743,2]
[315048068,1708776643286,-889.14,0.00023772,2]
[315048069,1708776643295,-151.04,0.00023859,2]
[315048070,1708776643304,-889.14,0.00023889,2]
[315048071,1708776643313,-4227.24999573,0.000239,2]
[315048072,1708776643322,-5000.0,0.000239,2]
[315048073,1708776643331,-302.13686972,0.000239,2]
[315048074,1708776643341,-171.32622228,0.000239,2]
[315048075,1708776643350,-179.0,0.00023904,2]
[315048076,1708776643359,-167.23600671,0.00023926,2]
[315048077,1708776643368,-151.04,0.00023974,2]
[315048078,1708776643378,-161.64969989,0.00024,2]
[315048079,1708776643387,-92519.44513738,0.00024,2]
[315048080,1708776645693,-309.80450161,0.00022999,2]
[315048081,1708776645744,-2309.42670882,0.00022999,2]
[315048082,1708776645757,-1122.59869064,0.00022999,2]
[315048083,1708776645801,-1242.39335402,0.00022999,2]
[315048084,1708776645811,-252.04138914,0.00024,2]
[315048085,1708776645822,-2632.00119279,0.00024,2]
[315048086,1708776645873,-8224.73028397,0.00024,2]
[315048087,1708776645929,-345.1259722,0.00024,2]
[315048088,1708776645942,-2027.89647302,0.00024,2]
[315048089,1708776645954,-431.885,0.00024,2]
[315048090,1708776645995,-553.54979927,0.00024,2]
[315048091,1708776646013,-674.79429573,0.00024,2]
[315048092,1708776646028,-14968.1867392,0.00024,2]
[315048093,1708776646051,-348.77523253,0.00024,2]
[315048094,1708776646063,-697.31847134,0.00024,2]
[315048095,1708776646075,-2961.09999999,0.00024,2]
[315048096,1708776646110,-1563.16156564,0.00024,2]
[315048097,1708776646121,-1721.74746167,0.00024,2]
[315048098,1708776646132,-1991.56168592,0.00024,2]
[315048107,1708776777312,300.0,0.00022332,2]
[315048108,1708777108029,174.28,0.0001826,2]
[315048109,1708777144722,501.22,0.00020676,2]
[315048110,1708777288114,1665.027067,0.00022313,2]
[315048111,1708777534595,10097.90811173,0.0002222,2]
[315048116,1708777759210,476.15,0.00020529,2]
[315048117,1708777764111,172.64092323,0.00022314,2]
[315048125,1708777831928,-827.57495502,0.00022402,2]
[315048126,1708777831985,-337.36422266,0.00022402,2]
[315048127,1708777831997,-443.91263648,0.00022402,2]
[315048128,1708777832008,-540.11190886,0.00022403,2]
[315048129,1708777832019,-587.68771841,0.00022403,2]
[315048130,1708777832031,-84.9794696,0.00022403,2]
[315048131,1708777832040,-538.41350909,0.00022404,2]
[315048132,1708777832097,-493.64174045,0.00022404,2]
[315048133,1708777832109,-17.43563752,0.00022404,2]
[315048134,1708777832118,-300.0,0.00022413,2]
[315048135,1708777832128,-150.0,0.00022413,2]
[315048136,1708777832137,-150.0,0.00022413,2]
[315048137,1708777832147,-300.0,0.00022413,2]
[315048138,1708777832156,-362.28,0.00022414,2]
[315048139,1708777832166,-182.58,0.00022414,2]
[315048140,1708777832175,-1520.25039716,0.00022414,2]
[315048141,1708777832188,-355.79356582,0.00022414,2]
[315048144,1708777832241,-431.18512968,0.00022414,2]
[315048146,1708777832254,-170.21090734,0.00022414,2]
[315048148,1708777832265,-250.0,0.00022414,2]
[315048150,1708777832274,-500.0,0.00022414,2]
[315048151,1708777832282,-200.0,0.00022448,2]
[315048152,1708777832291,-2000.0,0.00022469,2]
[315048153,1708777832301,-566.37,0.00022521,2]
[315048154,1708777832310,-172.6409232,0.00022562,2]
[315048155,1708777832320,-385.81,0.00022599,2]
[315048156,1708777832329,-236.16752693,0.000226,2]
[315048157,1708777832338,-17718.13,0.000226,2]
[315048158,1708777832348,-205.0,0.00022696,2]
[315048159,1708777832357,-476.15,0.00022792,2]
[315048160,1708777832367,-172.6409232,0.0002281,2]
[315048161,1708777832376,-158.85,0.00022825,2]
[315048162,1708777832386,-8719.8,0.000229,2]
[315048164,1708777832397,-637.72,0.00022923,2]
[315048166,1708777832407,-2077.19319869,0.00022946,2]
[315048168,1708777832416,-3545.17883407,0.00022956,2]
[315048237,1708777833028,-20354.82116593,0.00022956,2]
[315048239,1708777833038,-440.03,0.00022956,2]
[315048241,1708777833047,-158.85,0.00023015,2]
[315048243,1708777833056,-172.6409232,0.00023058,2]
[315048246,1708777833066,-166.0,0.00023087,2]
[315048247,1708777833075,-158.85,0.00023205,2]
[315048249,1708777833084,-1836.31,0.00023215,2]
[315048252,1708777833093,-172.6409232,0.00023305,2]
[315048254,1708777833102,-200.0,0.00023312,2]
[315048256,1708777833111,-1800.44,0.00023361,2]
[315048258,1708777833120,-158.85,0.00023396,2]
[315048259,1708777833129,-151.022418,0.00023498,2]
[315048261,1708777833139,-151.022418,0.00023498,2]
[315048264,1708777833148,-151.022418,0.00023498,2]
[315048265,1708777833158,-151.022418,0.00023498,2]
[315048268,1708777833167,-151.022418,0.00023498,2]
[315048270,1708777833176,-151.022418,0.00023498,2]
[315048272,1708777833186,-151.022418,0.00023498,2]
[315048274,1708777833195,-151.022418,0.00023498,2]
[315048276,1708777833204,-151.022418,0.00023498,2]
[315048277,1708777833214,-151.022418,0.00023498,2]
[315048280,1708777833225,-151.022418,0.00023498,2]
[315048281,1708777833238,-151.022418,0.00023498,2]
[315048283,1708777833248,-150.03175106,0.00023498,2]
[315048285,1708777833256,-172.6409232,0.00023553,2]
[315048287,1708777833266,-158.85,0.00023586,2]
[315048289,1708777833275,-164.49,0.00023645,2]
[315048291,1708777833284,-430.0,0.00023756,2]
[315048293,1708777833293,-158.85,0.00023776,2]
[315048295,1708777833302,-150.0,0.00023779,2]
[315048298,1708777833312,-163.39,0.00023795,2]
[315048299,1708777833322,-172.6409232,0.00023801,2]
[315048301,1708777833331,-800.0,0.00023807,2]
[315048303,1708777833340,-200.0,0.00023808,2]
[315048306,1708777833349,-800.0,0.00023808,2]
[315048308,1708777833359,-539.26910712,0.000239,2]
[315048310,1708777833367,-163.39,0.0002392,2]
[315048312,1708777833378,-158.85,0.00023966,2]
[315048314,1708777833387,-7257.7706607,0.00023989,2]
[315048316,1708777833396,-334.27841589,0.00023998,2]
[315048317,1708777833408,-618.25528597,0.00023998,2]
[315048320,1708777833417,-436.76400184,0.00023998,2]
[315048322,1708777833426,-150.01,0.00023999,2]
[315048324,1708777833436,-4220.07945161,0.00023999,2]
[315048325,1708777833445,-233158.64863395,0.00024,2]
[315048778,1708777837845,-150.01,0.00023999,2]
[315048780,1708777837855,-246.03396954,0.00023999,2]
[315048782,1708777837866,-296.43501175,0.00023999,2]
[315048785,1708777837882,-2974.26389505,0.00023999,2]
[315048787,1708777837891,-5613.17535829,0.00024,2]
[315048790,1708777837910,-7816.14263516,0.00024,2]
[315048793,1708777837933,-505.7999905,0.00024,2]
[315048794,1708777837945,-25376.78698705,0.00024,2]
[315048795,1708777837982,-2830.57428218,0.00024,2]
[315048796,1708777837993,-541.90799385,0.00024,2]
[315048797,1708777838029,-409.548615,0.00024,2]
[315048798,1708777838041,-2191.17261473,0.00024,2]
[315048799,1708777838052,-71081.64944182,0.00024,2]
[315048805,1708777838181,-136.43060896,0.00024,2]
[315048806,1708777838222,-1500.0,0.00024,2]
[315048807,1708777838232,-6.23818251,0.00024,2]
[315048808,1708777838245,-148.76181749,0.00024,2]
[315048809,1708777838254,-245.96865799,0.00024,2]
[315048810,1708777838274,-151.32134201,0.00024,2]
[315048811,1708777838283,-438.46242279,0.00024,2]
[315048812,1708777838320,-2836.63917604,0.00024,2]
[315048814,1708777838330,-2000.0,0.00024,2]
[315048816,1708777838339,-200.0,0.00024,2]
[315048817,1708777838348,-2000.0,0.00024,2]
[315048818,1708777838358,-200.0,0.00024,2]
[315048819,1708777838367,-889.14,0.00024005,2]
[315048820,1708777838376,-64.41569307,0.00024045,2]
[315048821,1708777838388,-98.97430693,0.00024045,2]
[315048822,1708777838398,-172.6409232,0.00024049,2]
[315048823,1708777838407,-151.04,0.0002409,2]
[315048824,1708777838416,-1282.81116147,0.00024114,2]
[315048825,1708777838425,-889.14,0.00024122,2]
[315048826,1708777838434,-774.84825614,0.00024132,2]
[315048827,1708777838443,-158.85,0.00024157,2]
[315048828,1708777838452,-566.37,0.00024165,2]
[315048829,1708777838461,-163.39,0.0002417,2]
[315048830,1708777838470,-151.04,0.00024206,2]
[315048831,1708777838479,-889.14,0.00024239,2]
[315048832,1708777838488,-2000.0,0.0002424,2]
[315048833,1708777838497,-200.0,0.0002424,2]
[315048834,1708777838506,-2000.0,0.0002424,2]
[315048835,1708777838516,-200.0,0.0002424,2]
[315048836,1708777838525,-163.39,0.00024296,2]
[315048837,1708777838534,-172.6409232,0.00024297,2]
[315048838,1708777838543,-369.46454756,0.00024345,2]
[315048849,1708777840478,-499.99,0.00024165,2]
[315048850,1708777840488,-20.53545244,0.00024345,2]
[315048851,1708777840497,-158.85,0.00024347,2]
[315048852,1708777840507,-404.4013985,0.00024355,2]
[315048853,1708777841121,-484.7386015,0.00024355,2]
[315048854,1708777841132,-222.42,0.00024359,2]
[315048855,1708777841142,-4959.43,0.00024384,2]
[315048856,1708777841152,-157.45,0.00024384,2]
[315048857,1708777841161,-163.39,0.00024421,2]
[315048858,1708777841170,-539.26910705,0.00024471,2]
[315048859,1708777841179,-2000.0,0.00024482,2]
[315048860,1708777841189,-200.0,0.00024482,2]
[315048861,1708777841198,-2000.0,0.00024482,2]
[315048862,1708777841207,-200.0,0.00024482,2]
[315048863,1708777841217,-2242.73956592,0.00024535,2]
[315048864,1708777841229,-2242.73956591,0.00024535,2]
[315048865,1708777841238,-158.85,0.00024537,2]
[315048866,1708777841246,-172.6409232,0.00024545,2]
[315048867,1708777841256,-163.39,0.00024546,2]
[315048868,1708777841265,-681.94,0.00024611,2]
[315048869,1708777841274,-150.0,0.00024646,2]
[315048870,1708777841284,-150.0,0.00024649,2]
[315048871,1708777841293,-150.0,0.00024651,2]
[315048872,1708777841304,-948.0,0.00024658,2]
[315048873,1708777841314,-250.0,0.00024658,2]
[315048874,1708777841323,-3182.65,0.00024658,4]
[315048875,1708777841332,-163.39,0.00024671,2]
[315048876,1708777841341,-150.0,0.00024674,2]
[315048877,1708777841350,-150.0,0.0002468,2]
[315048878,1708777841360,-150.0,0.00024684,2]
[315048879,1708777841368,-150.0,0.00024695,2]
[315048880,1708777841378,-150.0,0.00024703,2]
[315048881,1708777841388,-150.0,0.00024705,2]
[315048882,1708777841397,-150.0,0.00024715,2]
[315048883,1708777841406,-300.0,0.00024716,2]
[315048884,1708777841416,-2000.0,0.00024727,2]
[315048885,1708777841425,-200.0,0.00024727,2]
[315048886,1708777841434,-2000.0,0.00024727,2]
[315048887,1708777841443,-200.0,0.00024727,2]
[315048888,1708777841452,-158.85,0.00024727,2]
[315048889,1708777841462,-44803.41533796,0.0002473,2]
[315048890,1708777841471,-150.0,0.00024739,2]
[315048891,1708777841480,-150.0,0.00024742,2]
[315048892,1708777841490,-300.0,0.00024743,2]
[315048893,1708777841499,-150.0,0.00024755,2]
[315048894,1708777841508,-150.0,0.00024756,2]
[315048895,1708777841517,-150.0,0.00024757,2]
[315048896,1708777841526,-150.0,0.0002476,2]
[315048897,1708777841536,-150.0,0.00024765,2]
[315048898,1708777841545,-239.74307514,0.00024768,2]
[315048899,1708777841554,-150.0,0.00024772,2]
[315048900,1708777841563,-150.0,0.00024776,2]
[315048901,1708777841572,-150.0,0.0002478,2]
[315048902,1708777841581,-150.0,0.00024789,2]
[315048903,1708777841590,-172.6409232,0.00024792,2]
[315048904,1708777841600,-150.0,0.00024793,2]
[315048905,1708777841610,-163.39,0.00024797,2]
[315048906,1708777841619,-150.0,0.00024802,2]
[315048907,1708777841627,-150.0,0.00024807,2]
[315048908,1708777841636,-150.0,0.00024811,2]
[315048909,1708777841645,-150.0,0.00024819,2]
[315048910,1708777841655,-150.0,0.00024819,2]
[315048911,1708777841664,-150.0,0.00024821,2]
[315048912,1708777841673,-150.0,0.00024822,2]
[315048913,1708777841682,-150.0,0.00024825,2]
[315048914,1708777841691,-150.0,0.00024827,2]
[315048915,1708777841700,-150.0,0.00024831,2]
[315048916,1708777841710,-1500.0,0.00024837,2]
[315048917,1708777841719,-150.0,0.00024841,2]
[315048918,1708777841728,-150.0,0.00024845,2]
[315048919,1708777841737,-150.0,0.00024853,2]
[315048920,1708777841747,-150.0,0.00024859,2]
[315048921,1708777841757,-150.0,0.00024869,2]
[315048922,1708777841767,-1500.0,0.00024871,2]
[315048923,1708777841777,-300.0,0.00024879,2]
[315048924,1708777841786,-324715.78401573,0.0002488,2]
[315048925,1708777841803,-12006.473431,0.0002488,2]
[315048926,1708777841819,-3874.999995,0.0002488,2]
[315048927,1708777841868,-1018.3525594,0.0002488,2]
[315048928,1708777841888,-1224.24999953,0.0002488,2]
[315048929,1708777841899,-42691.89112952,0.0002488,2]
[315048930,1708777841910,-658.89701571,0.0002488,2]
[315048931,1708777841922,-420.0,0.0002488,2]
[315048932,1708777841946,-512.99332063,0.0002488,2]
[315048933,1708777842113,-9233.68984971,0.0002488,2]
[315048934,1708777842125,-710.7625844,0.0002488,2]
[315048935,1708777842159,-430.72640198,0.0002488,2]
[315048936,1708777842170,-1007.43044093,0.0002488,2]
[315048947,1708777842930,-150.01,0.00023999,2]
[315048948,1708777842941,-349.99,0.00023999,2]
[315048950,1708777842952,-2050.82830529,0.00023999,2]
[315048952,1708777842980,-529.79242499,0.00023999,2]
[315048953,1708777842989,-165.43745758,0.0002488,2]
[315048954,1708777843001,-327.91832705,0.0002488,2]
[315048957,1708777843431,-696.21125255,0.0002488,2]
[315048958,1708777843455,-5840.06532667,0.0002488,2]
[315048959,1708777843467,-855.62630079,0.0002488,2]
[315048960,1708777843478,-352.72799642,0.0002488,2]
[315048961,1708777843504,-1792.02971953,0.0002488,2]
[315048962,1708777843517,-217563.20851171,0.0002488,2]
[315048963,1708777843528,-413227.92955547,0.0002488,2]
[315048964,1708777843538,-150.0,0.00024881,2]
[315048965,1708777843548,-150.0,0.00024889,2]
[315048966,1708777843557,-150.0,0.00024901,2]